{"text_format":"1","workbook":"xlsx","n_sheets":3,"sheets":["Water","Wastewater","Drainage"],"not_rendered":{"charts":0,"images":2,"macros":1,"external_links":0,"defined_names":6,"comments":0,"pivot_tables":0},"unopened":[],"bounds":{"document_bytes":16777216,"sheet_cells":100000,"rows_first":2000,"rows_last":500,"rows_between":2000,"halvings":0,"cell_chars":16384,"cell_head_chars":4096},"cells_cut":0,"cells_raw":0,"read":"whole","date_system":"1900"}

{"sheet":"Water","index":0,"n_rows":711,"n_cols":5,"rows_kept":711,"cut":false,"hidden":false,"merged":[]}
[]
[null,null,"Water Products - Make Selections, then Print the signature form",null,"Updated 9/2/2016"]
[null,null,"WATER PRODUCT SUBMITTALS"]
[]
[]
[]
[]
[]
[]
[null,null,"Products from CoRR Standard Details"]
[null,"x","CoRR SPL No.","Description","Brand/Model"]
[null,"x","CoRR SPL No.","Description","Brand/Model"]
[0,null,"CoRR SPL No.","Description","Brand/Model"]
[2,null,"RRSPL-WT-0200(A)","Water Meter - Service Clamp (Service Saddle)","Smith-Blair 317 Service Saddle Epoxy Coated, Double Strap, Stainless Steel"]
[3,null,"RRSPL-WT-0201(A)","Water Meter - Service Clamp (Service Saddle)","JCM 406 Coated Service Saddle w/ Double Stainless Steel Straps"]
[4,null,"RRSPL-WT-0200(B)","1\" thru 2\" Corp. Stop (Omit Inserts)","Ford/FB1100-4-G-NL Style (1\") thru FB1100-7-G-NL (2\")"]
[5,null,"RRSPL-WT-0200(C )","Service Pipe (1\" thru 2\")","Endot/EndoPoly AWWA C901-08 & ASTM D-2737 (0.75”-2”)"]
[6,null,"**NOT PERMITTED**","Stainless Steel Inserts **NOT PERMITTED**","Ford-Insert-xx style  **NOT PERMITTED**"]
[7,null,"RRSPL-WT-0200(DF)","Angle Key Meter valves","Ford/KV13-xxxW-NL Style (0.75\" thru 1\") Female inlet for U-branch Outlet"]
[8,null,"RRSPL-WT-0200(DG)","Angle Key Meter valves","Ford/KV43-xxxW-G-NL Style (0.75\" thru 1\") Grip joint for Plastic Tubing"]
[9,null,"RRSPL-WT-0200(DU1.0)","U Branch","Ford/U48-xx-xx-G-NL Style (0.75\" thru 1.5\")"]
[10,null,"RRSPL-WT-0200(DU1.5)","U Branch","Ford/U48-xx-xx-G-NL Style (0.75\" thru 1.5\")"]
[12,null,"RRSPL-WT-0200(E36)","Meter box (Single 5/8\" thru 1\")","Rotec DFW/DFW36C Series "]
[13,null,"RRSPL-WT-0200(E65)","Meter box (Single 1.5\" thru 2\")","Rotec DFW/DFW65C Series"]
[14,null,"RRSPL-WT-0200(E38)","Meter box (Dual 5/8\" thru 1\")","Rotec DFW/DFW38C Series"]
[22,null,"RRSPL-WT-0500","Fire Hydrant","American Flow Control/American Darling 5-1/4\" B-84-B-5"]
[23,null,"RRSPL-WT-0501","Fire Hydrant","Clow Medallion"]
[24,null,"RRSPL-WT-0502","Fire Hydrant","Mueller Centerion"]
[25,null,"RRSPL-WT-0510","Post Indicator Valve","Clow-Post Style 2945A Telescoping Barrell Assembly"]
[27,null,"RRSPL-WT-0700","Water Line Bedding","Texas Crushed Stone/TCS #265 3/8\" F"]
[28,null,"RRSPL-WT-0701","W Line Bedding","Texas Crushed Stone #265 3/8\" F Bedding Gravel"]
[29,null,"RRSPL-WT-0702","W Line Bedding","Texas Crushed Stone #267 D/F Blend Bedding Gravel"]
[30,null,"RRSPL-WT-0703","W Line Bedding","Cooper Stone 3/8\" F Gravel* (*Washing required; small quantities only)"]
[31,null,"RRSPL-WT-0704","W Line Bedding","Old Castle 3/8\" F (Minus) Rock (*Not approved for large or deep lines)"]
[32,null,"RRSPL-WT-0705","W Line Bedding","Old Castle #435 D/F Blend Hot Mix Rock (Approved equal to TCS 3/8\" F)"]
[33,null,"RRSPL-WT-1100(A)","Vertical Valve Casting - PE Encasement for DI Pipe ","Mountain States Plastics/8 Mil Poly Wrap AWWA C105/A21.5-10"]
[34,null,"RRSPL-WT-1101(A)","Vertical Valve Casting - PE Encasement for DI Pipe ","Infinity Plastics/Linear Low Density Polyethylene Pipe Encasement for DI Pipe"]
[35,null,"RRSPL-WT-1102(A)","Vertical Valve Casting - PE Encasement for DI Pipe ","Cowtown Bolt & Gasket, CO. Bull Strong 3600 Polywrap"]
[36,null,"RRSPL-WT-1100(B)","6\" Ductile Iron Pipe Canister","See RRSPL-WT-4000"]
[37,null,"RRSPL-WT-1100(C5)","Boot and Valve Box Assembly","Sigma/VB149 (Austin, TX)"]
[38,null,"RRSPL-WT-1100(C6) ","Valve Box Ring (STD DACS 511S-14)","Sigma/VB1492 (Austin, TX)"]
[39,null,"RRSPL-WT-1100(C7)","Valve Box Lid (STD DACS 511S-12)","Sigma/VB149 (Austin, TX)"]
[42,null,"RRSPL-WT-1600","Steel Casing","(See RRSPL-WT-7000)"]
[43,null,"RRSPL-WT-1620","Casing Spacers **NO BWM SPYDER**","BWM SS-8 for 4”-20”; SS-12 for 24”-36”"]
[44,null,"RRSPL-WT-2200","Resilient Wedge Gate Valve ","American Flow Control/RWGV1 Series 2500 (2\" thru 12\")"]
[45,null,"RRSPL-WT-2201","Resilient Wedge Gate Valve ","Clow"]
[46,null,"RRSPL-WT-2202","Resilient Wedge Gate Valve ","Mueller"]
[48,null,"RRSPL-WT-2400","Dead End Line Blow-Off Valve","Kupferle/Mainguard No. 77"]
[49]
[50]
[51]
[52]
[53]
[54]
[55]
[56]
[57]
[58]
[59]
[60]
[61]
[62]
[63]
[64]
[65]
[66]
[67]
[68]
[69]
[70]
[71]
[72]
[73]
[74]
[75]
[76]
[77]
[78]
[79]
[80]
[81]
[82]
[83]
[84]
[85]
[86]
[87]
[88]
[89]
[90]
[91]
[92]
[93]
[94,"x","End of Products found in CoRR Standard Details"]
[95,"x","End of Selected Products from CoRR Standard Details",null,"End of Selected Products from CoRR Standard Details"]
[]
[null,null,"PVC Water Pipe and Appurtenances"]
[null,"x",{"$f":"C11","v":"CoRR SPL No."},"Description","Brand/Model"]
[null,"x","CoRR SPL No.","Description","Brand/Model"]
[0,null,"CoRR SPL No.","Description","Brand/Model"]
[1,null,"RRSPL-WT-3000","C900 PVC Pipe","PipeLife/AWWA C900 4\" thru 12\""]
[2,null,"RRSPL-WT-3001","C900 PVC Pipe","Diamond Plastics/AWWA C900 4\" thru 12\""]
[3,null,"RRSPL-WT-3002","C900 PVC Pipe","North American Pipe/AWWA C900 4\" thru 12\""]
[4,null,"RRSPL-WT-3003","C900 PVC Pipe","JM Eagle"]
[5,null,"RRSPL-WT-3100","PVC Pipe Restraint","Tyler Union/TUFGRIP TLP for PVC Pipe"]
[6,null,"RRSPL-WT-3101","PVC Pipe Restraint","Sigma/ONE-LOK Series SLCE for PVC Pipe (Megalug)"]
[7,null,"RRSPL-WT-3102","PVC Pipe Restraint","Star"]
[8,null,"RRSPL-WT-3200","Mechanical Joint Restraint","In Fact-Foster Adapter"]
[9]
[10]
[11]
[12]
[13]
[14]
[15]
[16]
[17]
[18]
[19]
[20]
[21]
[22]
[23]
[24]
[25]
[26]
[27]
[28]
[29]
[30]
[31]
[32]
[33]
[34]
[35]
[36]
[37]
[38]
[39]
[40]
[41]
[42]
[43]
[44]
[45]
[46]
[47]
[48]
[49]
[50]
[51]
[52]
[53]
[54]
[55]
[56]
[57]
[58]
[59]
[60]
[61]
[62]
[63]
[64]
[65]
[66]
[67]
[68]
[69]
[70]
[71]
[72]
[73]
[74]
[75]
[76]
[77]
[78]
[79]
[80]
[81]
[82]
[83]
[84]
[85]
[86]
[87]
[88]
[89]
[90]
[91]
[92]
[93]
[94,"x","End of Products for PVC Water Pipe and Appurtenances"]
[95,"x","End of Selections for PVC Water Pipe and Appurtenances",null,"End of Selections for PVC Water Pipe and Appurtenances"]
[]
[null,null,"Ductile Water Pipe and Appurtenances"]
[null,"x",{"$f":"C98","v":"CoRR SPL No."},"Description","Brand/Model"]
[null,"x","CoRR SPL No.","Description","Brand/Model"]
[0,null,{"$f":"C100","v":"CoRR SPL No."},{"$f":"D100","v":"Description"},{"$f":"E100","v":"Brand/Model"}]
[1,null,"RRSPL-WT-4000","Ductile Iron Pipe","American/DI Fastite Joint PipeAWWA C151/A21.51 (4\" thru 64”); deflection 5o for 4” thru 30”, 4o for 36”, an 3o for 42” thru 64”"]
[2,null,"RRSPL-WT-4001","Ductile Iron Pipe","Clow/ Tyton and Fastite Joint Pipe for 3\"-24\" and 30\"-36\", Respectively"]
[3,null,"RRSPL-WT-4002","Ductile Iron Pipe","PSCIPCO-Pressure Class DI Pipe 4\" thru 36\""]
[4,null,"RRSPL-WT-4100","Mechanical Joints for Ductile Iron","Tyler Union/C153 DI Compact Fittings 3\"-12\" for Fire Main"]
[5,null,"RRSPL-WT-4101","Mechanical Joints for Ductile Iron","Sigma/C153 Mechanical Joint Compact Fittings for Ductile Iron Pipe 4\"-12\""]
[6,null,"RRSPL-WT-4102","Mechanical Joints for Ductile Iron","Star"]
[7,null,"RRSPL-WT-4200","Ductile Iron Pipe Restraint","Sigma/ONE-LOK Series SLDE for Ductile Iron Pipe"]
[8,null,"RRSPL-WT-4201","Ductile Iron Pipe Restraint","Tyler Union/TUFGRIP TLD for Ductile Iron Pipe "]
[9,null,"RRSPL-WT-4202","Ductile Iron Pipe Restraint","Ford - Uni Flange Retainer UFR1390-C-x-I for C900 and Ductile Iron Pipe 4”-12”"]
[10,null,"RRSPL-WT-4203","Ductile Iron Pipe Restraint","EBAA Iron Inc-Megalug Series 1100"]
[11,null,"RRSPL-WT-4300","Ductile Iron Pipe Couplings","Smith-Blair/411 Steel Couplings"]
[12,null,"RRSPL-WT-4301","Ductile Iron Pipe Couplings","KRAUSZ/Hymax and Long Hymax"]
[13]
[14]
[15]
[16]
[17]
[18]
[19]
[20]
[21]
[22]
[23]
[24]
[25]
[26]
[27]
[28]
[29]
[30]
[31]
[32]
[33]
[34]
[35]
[36]
[37]
[38]
[39]
[40]
[41]
[42]
[43]
[44]
[45]
[46]
[47]
[48]
[49]
[50]
[51]
[52]
[53]
[54]
[55]
[56]
[57]
[58]
[59]
[60]
[61]
[62]
[63]
[64]
[65]
[66]
[67]
[68]
[69]
[70]
[71]
[72]
[73]
[74]
[75]
[76]
[77]
[78]
[79]
[80]
[81]
[82]
[83]
[84]
[85]
[86]
[87]
[88]
[89]
[90]
[91]
[92]
[93]
[94,"x","End of Products for Ductile Water Pipe and Appurtenances"]
[95,"x","End of Selections for Ductile Water Pipe and Appurtenances",null,"End of Selections for Ductile Water Pipe and Appurtenances"]
[]
[null,null,"Hot Taps on Existing Water"]
[null,"x",{"$f":"C198","v":"CoRR SPL No."},"Description","Brand/Model"]
[null,"x","CoRR SPL No.","Description","Brand/Model"]
[0,null,{"$f":"C200","v":"CoRR SPL No."},{"$f":"D200","v":"Description"},{"$f":"E200","v":"Brand/Model"}]
[2,null,"RRSPL-WT-5001","Tapping Sleeve (PVC or DI)","JCM 412 Epoxy Coated Stainless Steel Hardware for DI or C900"]
[3,null,"RRSPL-WT-5010","Tapping Sleeve (Size on Size and AC Pipe)","Smith-Blair/665 Stainless Steel Tap Sleeve for AC or Size-Size Connections"]
[4,null,"RRSPL-WT-5011","Tapping Sleeve (Size on Size and AC Pipe)","JCM 432 Stainless Steel Tap Sleeve for AC or Size-Size Connections"]
[5,null,"RRSPL-WT-5200","Tapping Valve","American Flow Control/TV1 Series 2500 Tapping Valves; 4” thru 48”"]
[6,null,"RRSPL-WT-5201","Tapping Valve","Clow"]
[7,null,"RRSPL-WT-5202","Tapping Valve","Mueller"]
[8,null,"RRSPL-WT-5203","Tapping Valve","EJIW"]
[9]
[10]
[11]
[12]
[13]
[14]
[15]
[16]
[17]
[18]
[19]
[20]
[21]
[22]
[23]
[24]
[25]
[26]
[27]
[28]
[29]
[30]
[31]
[32]
[33]
[34]
[35]
[36]
[37]
[38]
[39]
[40]
[41]
[42]
[43]
[44]
[45]
[46]
[47]
[48]
[49]
[50]
[51]
[52]
[53]
[54]
[55]
[56]
[57]
[58]
[59]
[60]
[61]
[62]
[63]
[64]
[65]
[66]
[67]
[68]
[69]
[70]
[71]
[72]
[73]
[74]
[75]
[76]
[77]
[78]
[79]
[80]
[81]
[82]
[83]
[84]
[85]
[86]
[87]
[88]
[89]
[90]
[91]
[92]
[93]
[94,"x","End of Products for Hot Taps on Existing Water"]
[95,"x","End of Selections for Hot Taps on Existing Water",null,"End of Selections for Hot Taps on Existing Water"]
[]
[null,null,"Risers"]
[null,"x",{"$f":"C298","v":"CoRR SPL No."},{"$f":"D298","v":"Description"},{"$f":"E298","v":"Brand/Model"}]
[null,"x",{"$f":"C299","v":"CoRR SPL No."},{"$f":"D299","v":"Description"},{"$f":"E299","v":"Brand/Model"}]
[0,null,{"$f":"C300","v":"CoRR SPL No."},{"$f":"D300","v":"Description"},{"$f":"E300","v":"Brand/Model"}]
[1,null,"RRSPL-WT-4900","In Building Risers","AMES - Serivies IBR 4\" thru 10\""]
[2]
[3]
[4]
[5]
[6]
[7]
[8]
[9]
[10]
[11]
[12]
[13]
[14]
[15]
[16]
[17]
[18]
[19]
[20]
[21]
[22]
[23]
[24]
[25]
[26]
[27]
[28]
[29]
[30]
[31]
[32]
[33]
[34]
[35]
[36]
[37]
[38]
[39]
[40]
[41]
[42]
[43]
[44]
[45]
[46]
[47]
[48]
[49]
[50]
[51]
[52]
[53]
[54]
[55]
[56]
[57]
[58]
[59]
[60]
[61]
[62]
[63]
[64]
[65]
[66]
[67]
[68]
[69]
[70]
[71]
[72]
[73]
[74]
[75]
[76]
[77]
[78]
[79]
[80]
[81]
[82]
[83]
[84]
[85]
[86]
[87]
[88]
[89]
[90]
[91]
[92]
[93]
[94,"x","End of Products for Risers"]
[95,"x","End of Selections for Risers",null,"End of Selections for Risers"]
[]
[null,null,"Mill Goods"]
[null,"x",{"$f":"C397","v":"CoRR SPL No."},"Description","Brand/Model"]
[null,"x","CoRR SPL No.","Description","Brand/Model"]
[0,null,{"$f":"C399","v":"CoRR SPL No."},{"$f":"D399","v":"Description"},{"$f":"E399","v":"Brand/Model"}]
[1,null,"RRSPL-WT-6000","Detectable Marker Tape","Pro-Line/5.0 Mil Detectable Tape"]
[2]
[3]
[4]
[5]
[6]
[7]
[8]
[9]
[10]
[11]
[12]
[13]
[14]
[15]
[16]
[17]
[18]
[19]
[20]
[21]
[22]
[23]
[24]
[25]
[26]
[27]
[28]
[29]
[30]
[31]
[32]
[33]
[34]
[35]
[36]
[37]
[38]
[39]
[40]
[41]
[42]
[43]
[44]
[45]
[46]
[47]
[48]
[49]
[50]
[51]
[52]
[53]
[54]
[55]
[56]
[57]
[58]
[59]
[60]
[61]
[62]
[63]
[64]
[65]
[66]
[67]
[68]
[69]
[70]
[71]
[72]
[73]
[74]
[75]
[76]
[77]
[78]
[79]
[80]
[81]
[82]
[83]
[84]
[85]
[86]
[87]
[88]
[89]
[90]
[91]
[92]
[93]
[94,"x","End of Products for Mill Goods"]
[95,"x","End of Selections for Mill Goods",null,"End of Selections for Mill Goods"]
[]
[null,null,"Casing Pipe"]
[null,"x",{"$f":"C497","v":"CoRR SPL No."},"Description","Brand/Model"]
[null,"x","CoRR SPL No.","Description","Brand/Model"]
[0,null,{"$f":"C500","v":"RRSPL-WT-6000"},{"$f":"D500","v":"Detectable Marker Tape"},{"$f":"E500","v":"Pro-Line/5.0 Mil Detectable Tape"}]
[1,null,"RRSPL-WT-7000","16\" OD Steel Casing","Cierra Pipe 16\" OD; 20' and 40' Lengths"]
[2,null,"RRSPL-WT-7100","18\" OD Steel Casing","Cierra Pipe 18\" OD; 20' and 40' Lengths"]
[3,null,"RRSPL-WT-7200","20\" OD Steel Casing","Cierra Pipe 20\" OD; 20' and 40' Lengths"]
[4,null,"RRSPL-WT-7300","24\" OD Steel Casing","Cierra Pipe 24\" OD; 20' and 40' Lengths"]
[5,null,"RRSPL-WT-7400","30\" OD Steel Casing","Cierra Pipe 30\" OD; 20' and 40' Lengths"]
[6,null,"RRSPL-WT-7500","36\" OD Steel Casing","Cierra Pipe 36\" OD; 20' and 40' Lengths"]
[7,null,"RRSPL-WT-7600","42\" OD Steel Casing","Cierra Pipe 42\" OD; 20' and 40' Lengths"]
[8,null,"RRSPL-WT-7700","48\" OD Steel Casing","Cierra Pipe 48\" OD; 20' and 40' Lengths"]
[9]
[10]
[11]
[12]
[13]
[14]
[15]
[16]
[17]
[18]
[19]
[20]
[21]
[22]
[23]
[24]
[25]
[26]
[27]
[28]
[29]
[30]
[31]
[32]
[33]
[34]
[35]
[36]
[37]
[38]
[39]
[40]
[41]
[42]
[43]
[44]
[45]
[46]
[47]
[48]
[49]
[50]
[51]
[52]
[53]
[54]
[55]
[56]
[57]
[58]
[59]
[60]
[61]
[62]
[63]
[64]
[65]
[66]
[67]
[68]
[69]
[70]
[71]
[72]
[73]
[74]
[75]
[76]
[77]
[78]
[79]
[80]
[81]
[82]
[83]
[84]
[85]
[86]
[87]
[88]
[89]
[90]
[91]
[92]
[93]
[94,"x","End of Products for Casing Pipe"]
[]
[]
[null,null,"These products are proposed by:"]
[]
[]
[null,null,"Contractor's Signature                                                                                    Date"]
[]
[]
[null,null,"    Contractor's Printed Name"]
[]
[]
[null,null,"These products are reviewed and approved by:"]
[]
[]
[null,null,"Engineer's Signature                                                                                    Date"]
[]
[]
[null,null,"      Engineers Printed Name"]

{"sheet":"Wastewater","index":1,"n_rows":422,"n_cols":5,"rows_kept":422,"cut":false,"hidden":false,"merged":[]}
[]
[null,null,"Wastewater Products - Make Selections, then Print the signature form",null,{"$f":"Water!E2","v":"Updated 9/2/2016"}]
[null,null,"WASTEWATER PRODUCT SUBMITTALS"]
[]
[]
[]
[]
[]
[]
[null,null,"Products from CoRR Standard Details"]
[null,"x","CoRR SPL No.","Description","Brand/Model"]
[null,"x","CoRR SPL No.","Description","Brand/Model"]
[0,null,"CoRR SPL No.","Description","Brand/Model"]
[1,null,"RRSPL-WW-0100","Precast Conc. WW Manhole","Hanson 4' ID Manhole-Regular Base w/ Reducing Cone. Concentric Cone."]
[2,null,"RRSPL-WW-0101","Precast Conc. WW Manhole","Capital Concrete 4' ID Manhole w/ Reducing Cone. Concentric Cone."]
[3,null,"RRSPL-WW-0102","Precast Conc. WW Manhole","Charlottes Conc.-48\" MH Variable Stack"]
[4,null,"RRSPL-WW-0110","Precast Conc. WW Manhole","Hanson 5'/4' ID Manhole-Ext'd Base w/ Reducing Cone. Concentric Cone."]
[5,null,"RRSPL-WW-0120","Precast Conc. WW Manhole","Hanson 6'/4' ID Manhole-Ext'd Base w/ Reducing Cone. Concentric Cone."]
[6,null,"RRSPL-WW-0130","Precast Conc. WW Manhole","Hanson 6'/5' ID Manhole-Ext'd Base w/ Reducing Cone. Concentric Cone."]
[7,null,"RRSPL-WW-0700","Bolted WW Manhole Cover and Frame","East Jordan Iron Works Product No. 42432073"]
[8,null,"RRSPL-WW-0800","Non-Bolted WW Manhole Cover and Frame","East Jordan Iron Works Product No. 41432089"]
[10,null,"RRSPL-WW-1000","Flexible \"Seal Boot\" Resilient Connector ","Press-Seal PSX: Direct Drive High-Performance Pipe-to-Manhole Connector"]
[14,null,"RRSPL-WW-1700","WW Line Bedding","Texas Crushed Stone #265 3/8\" F Bedding Gravel"]
[15,null,"RRSPL-WW-1701","WW Line Bedding","Texas Crushed Stone #267 D/F Blend Bedding Gravel"]
[16,null,"RRSPL-WW-1702","WW Line Bedding","Cooper Stone 3/8\" F Gravel* (*Washing required; small quantities only)"]
[17,null,"RRSPL-WW-1703","WW Line Bedding","Old Castle 3/8\" F (Minus) Rock (*Not approved for large or deep lines)"]
[18,null,"RRSPL-WW-1704","WW Line Bedding","Old Castle #435 D/F Blend Hot Mix Rock (Approved equal to TCS 3/8\" F)"]
[19]
[20]
[21]
[22]
[23]
[24]
[25]
[26]
[27]
[28]
[29]
[30]
[31]
[32]
[33]
[34]
[35]
[36]
[37]
[38]
[39]
[40]
[41]
[42]
[43]
[44]
[45]
[46]
[47]
[48]
[49]
[50]
[51]
[52]
[53]
[54]
[55]
[56]
[57]
[58]
[59]
[60]
[61]
[62]
[63]
[64]
[65]
[66]
[67]
[68]
[69]
[70]
[71]
[72]
[73]
[74]
[75]
[76]
[77]
[78]
[79]
[80]
[81]
[82]
[83]
[84]
[85]
[86]
[87]
[88]
[89]
[90]
[91]
[92]
[93]
[94,"x","End of Products found in CoRR Standard Details"]
[95,null,"End of Selected Products from CoRR Standard Details",null,"End of Selected Products from CoRR Standard Details"]
[]
[null,null,"Sewer Pipe"]
[null,"x",{"$f":"C11","v":"CoRR SPL No."},"Description","Brand/Model"]
[null,"x","CoRR SPL No.","Description","Brand/Model"]
[0,null,"CoRR SPL No.","Description","Brand/Model"]
[1,null,"RRSPL-WW-3000","Sanitary Sewer Pipe ","PipeLife Jetstream/4\" thru 15\" ASTM D-3034 PVC Pipe"]
[2,null,"RRSPL-WW-3001","Sanitary Sewer Pipe ","Diamond Plastics/4\" thru 15\" ASTM D-3034 PVC Pipe"]
[3,null,"RRSPL-WW-3002","Sanitary Sewer Pipe ","North American Pipe/4\" thru 15\" ASTM D-3034 PVC Pipe"]
[4,null,"RRSPL-WW-3003","Sanitary Sewer Pipe ","JM Eagle-Gravity Sewer Pipe ASTM D-3034 PVC Pipe"]
[5,null,"RRSPL-WW-3500","Manhole Seal","Henry RU116-Rubr-nek External Joint Wrap"]
[6,null,"RRSPL-WW-3501","Manhole Seal","Press-Seal Gasket Corp-Type 4G and 4F Profile Gaskets Single Step Joint"]
[7]
[8]
[9]
[10]
[11]
[12]
[13]
[14]
[15]
[16]
[17]
[18]
[19]
[20]
[21]
[22]
[23]
[24]
[25]
[26]
[27]
[28]
[29]
[30]
[31]
[32]
[33]
[34]
[35]
[36]
[37]
[38]
[39]
[40]
[41]
[42]
[43]
[44]
[45]
[46]
[47]
[48]
[49]
[50]
[51]
[52]
[53]
[54]
[55]
[56]
[57]
[58]
[59]
[60]
[61]
[62]
[63]
[64]
[65]
[66]
[67]
[68]
[69]
[70]
[71]
[72]
[73]
[74]
[75]
[76]
[77]
[78]
[79]
[80]
[81]
[82]
[83]
[84]
[85]
[86]
[87]
[88]
[89]
[90]
[91]
[92]
[93]
[94,"x","End of Products for Sewer Pipe"]
[95,null,"End of Selections for Sewer Pipe",null,"End of Selections for Sewer Pipe"]
[]
[null,null,"WW Pipe Fittings"]
[null,"x",{"$f":"C107","v":"CoRR SPL No."},"Description","Brand/Model"]
[null,"x","CoRR SPL No.","Description","Brand/Model"]
[0,null,{"$f":"C109","v":"CoRR SPL No."},{"$f":"D109","v":"Description"},{"$f":"E109","v":"Brand/Model"}]
[1,null,"RRSPL-WW-4000","Sewer Fittings","Multi Fittings/Trench Tough Sewer Fittings (SDR 26 & SDR 35)"]
[2,null,"RRSPL-WW-4010","Sewer Service Fittings SDR 26 Gasketted Fittings","Plastic Trends/Series H Sewer Fittings (4\" thru 18\")"]
[3,null,"RRSPL-WW-4011","Sewer Service Fittings SDR 26 Gasketted Fittings","Multi Fittings/Trench Tough Plus Heavy Wall SDR 26 Fittings"]
[4,null,"RRSPL-WW-4012","Sewer Service Fittings SDR 26 Gasketted Fittings","GPK-SDR 26 D-3034/PS115 F-679 HWS Fittings"]
[5,null,"RRSPL-WW-4020","Sewer Service Fittings SDR 35 Glue Solvent Weld","Plastic Trends/Series P Sewer Fittings (3\" thru 24\")"]
[6]
[7]
[8]
[9]
[10]
[11]
[12]
[13]
[14]
[15]
[16]
[17]
[18]
[19]
[20]
[21]
[22]
[23]
[24]
[25]
[26]
[27]
[28]
[29]
[30]
[31]
[32]
[33]
[34]
[35]
[36]
[37]
[38]
[39]
[40]
[41]
[42]
[43]
[44]
[45]
[46]
[47]
[48]
[49]
[50]
[51]
[52]
[53]
[54]
[55]
[56]
[57]
[58]
[59]
[60]
[61]
[62]
[63]
[64]
[65]
[66]
[67]
[68]
[69]
[70]
[71]
[72]
[73]
[74]
[75]
[76]
[77]
[78]
[79]
[80]
[81]
[82]
[83]
[84]
[85]
[86]
[87]
[88]
[89]
[90]
[91]
[92]
[93]
[94,"x","End of Products for WW Pipe Fittings"]
[95,null,"End of Selections for WW Pipe Fittings",null,"End of Selections for WW Pipe Fittings"]
[]
[null,null,"Manhole Coating"]
[null,"x",{"$f":"C207","v":"CoRR SPL No."},"Description","Brand/Model"]
[null,"x","CoRR SPL No.","Description","Brand/Model"]
[0,null,{"$f":"C209","v":"CoRR SPL No."},{"$f":"D209","v":"Description"},{"$f":"E209","v":"Brand/Model"}]
[1,null,"RRSPL-WW-4300","MH Coating for new manholes","Sprayroq - Spray Wall"]
[2,null,"RRSPL-WW-4301","MH Coating for existing manholes","Sewper Coat"]
[3,null,"RRSPL-WW-4302","MH Coating for existing manholes","Raven 405"]
[4]
[5]
[6]
[7]
[8]
[9]
[10]
[11]
[12]
[13]
[14]
[15]
[16]
[17]
[18]
[19]
[20]
[21]
[22]
[23]
[24]
[25]
[26]
[27]
[28]
[29]
[30]
[31]
[32]
[33]
[34]
[35]
[36]
[37]
[38]
[39]
[40]
[41]
[42]
[43]
[44]
[45]
[46]
[47]
[48]
[49]
[50]
[51]
[52]
[53]
[54]
[55]
[56]
[57]
[58]
[59]
[60]
[61]
[62]
[63]
[64]
[65]
[66]
[67]
[68]
[69]
[70]
[71]
[72]
[73]
[74]
[75]
[76]
[77]
[78]
[79]
[80]
[81]
[82]
[83]
[84]
[85]
[86]
[87]
[88]
[89]
[90]
[91]
[92]
[93]
[94,"x","End of Products for Manhole Coating"]
[95,null,"End of Selected Products from CoRR Standard Details",null,"End of Selections for Manhole Coating"]
[]
[]
[null,null,"These products are proposed by:"]
[]
[]
[null,null,"Contractor's Signature                                                                                    Date"]
[]
[]
[null,null,"    Contractor's Printed Name"]
[]
[]
[null,null,"These products are reviewed and approved by:"]
[]
[]
[null,null,"Engineer's Signature                                                                                    Date"]
[]
[]
[null,null,"      Engineers Printed Name"]

{"sheet":"Drainage","index":2,"n_rows":621,"n_cols":5,"rows_kept":621,"cut":false,"hidden":false,"merged":[]}
[]
[null,null,"Drainage Products - Make Selections, then Print the signature form",null,{"$f":"Water!E2","v":"Updated 9/2/2016"}]
[null,null,"DRAINAGE PRODUCT SUBMITTALS"]
[]
[]
[]
[]
[]
[]
[null,null,"Products from CoRR Standard Details"]
[null,"x","CoRR SPL No.","Description","Brand/Model"]
[null,"x","CoRR SPL No.","Description","Brand/Model"]
[0,null,"CoRR SPL No.","Description","Brand/Model"]
[5,null,"RRSPL-DR-0600","Non-Bolted Storm Sewer Manhole Cover and Frame","EJIW Product No. 41432080"]
[6,null,"RRSPL-DR-0601","Non-Bolted Storm Sewer Manhole Cover and Frame","EJIW Product No. 00185451 & 00185411"]
[8]
[9]
[10]
[11]
[12]
[13]
[14]
[15]
[16]
[17]
[18]
[19]
[20]
[21]
[22]
[23]
[24]
[25]
[26]
[27]
[28]
[29]
[30]
[31]
[32]
[33]
[34]
[35]
[36]
[37]
[38]
[39]
[40]
[41]
[42]
[43]
[44]
[45]
[46]
[47]
[48]
[49]
[50]
[51]
[52]
[53]
[54]
[55]
[56]
[57]
[58]
[59]
[60]
[61]
[62]
[63]
[64]
[65]
[66]
[67]
[68]
[69]
[70]
[71]
[72]
[73]
[74]
[75]
[76]
[77]
[78]
[79]
[80]
[81]
[82]
[83]
[84]
[85]
[86]
[87]
[88]
[89]
[90]
[91]
[92]
[93]
[94,"x","End of Products List found in CoRR Standard Details"]
[95,"x","End of Selected Products from CoRR Standard Details",null,"End of Selected Products from CoRR Standard Details"]
[]
[null,null,"Concrete Pipe"]
[null,"x",{"$f":"C11","v":"CoRR SPL No."},"Description","Brand/Model"]
[null,"x","CoRR SPL No.","Description","Brand/Model"]
[0,null,"CoRR SPL No.","Description","Brand/Model"]
[1,null,"RRSPL-DR-3000","18\" Class 3 RCP","Ameritex - RCP Pipe;  ASTM C76; 4,000 psi.; flush barrel tongue & groove"]
[2,null,"RRSPL-DR-3001","18\" Class 3 RCP","Hanson-RCP Pipe; ASTM C76  Tongue and Groove pipe"]
[3,null,"RRSPL-DR-3010","24\" Class 3 RCP","Ameritex - RCP Pipe;  ASTM C76; 4,000 psi.; flush barrel tongue & groove"]
[4,null,"RRSPL-DR-3011","24\" Class 3 RCP","Hanson-RCP Pipe; ASTM C76  Tongue and Groove pipe"]
[5,null,"RRSPL-DR-3020","30\" Class 3 RCP","Ameritex - RCP Pipe;  ASTM C76; 4,000 psi.; flush barrel tongue & groove"]
[6,null,"RRSPL-DR-3021","30\" Class 3 RCP","Hanson-RCP Pipe; ASTM C76  Tongue and Groove pipe"]
[7,null,"RRSPL-DR-3030","36\" Class 3 RCP","Ameritex - RCP Pipe;  ASTM C76; 4,000 psi.; flush barrel tongue & groove"]
[8,null,"RRSPL-DR-3031","36\" Class 3 RCP","Hanson-RCP Pipe; ASTM C76  Tongue and Groove pipe"]
[9,null,"RRSPL-DR-3040","42\" Class 3 RCP","Ameritex - RCP Pipe;  ASTM C76; 4,000 psi.; flush barrel tongue & groove"]
[10,null,"RRSPL-DR-3041","42\" Class 3 RCP","Hanson-RCP Pipe; ASTM C76  Tongue and Groove pipe"]
[11,null,"RRSPL-DR-3050","48\" Class 3 RCP","Ameritex - RCP Pipe;  ASTM C76; 4,000 psi.; flush barrel tongue & groove"]
[12,null,"RRSPL-DR-3051","48\" Class 3 RCP","Hanson-RCP Pipe; ASTM C76  Tongue and Groove pipe"]
[13,null,"RRSPL-DR-3060","54\" Class 3 RCP","Ameritex - RCP Pipe;  ASTM C76; 4,000 psi.; flush barrel tongue & groove"]
[14,null,"RRSPL-DR-3061","54\" Class 3 RCP","Hanson-RCP Pipe; ASTM C76  Tongue and Groove pipe"]
[15,null,"RRSPL-DR-3070","60\" Class 3 RCP","Ameritex - RCP Pipe;  ASTM C76; 4,000 psi.; flush barrel tongue & groove"]
[16,null,"RRSPL-DR-3071","60\" Class 3 RCP","Hanson-RCP Pipe; ASTM C76  Tongue and Groove pipe"]
[17,null,"RRSPL-DR-3500","Class 3 RCB","Ameritex - 3’x2’ thru 12’x12’ RCB;  ASTM C1433 &/or C1577; 5,000 psi conc."]
[18]
[19]
[20]
[21]
[22]
[23]
[24]
[25]
[26]
[27]
[28]
[29]
[30]
[31]
[32]
[33]
[34]
[35]
[36]
[37]
[38]
[39]
[40]
[41]
[42]
[43]
[44]
[45]
[46]
[47]
[48]
[49]
[50]
[51]
[52]
[53]
[54]
[55]
[56]
[57]
[58]
[59]
[60]
[61]
[62]
[63]
[64]
[65]
[66]
[67]
[68]
[69]
[70]
[71]
[72]
[73]
[74]
[75]
[76]
[77]
[78]
[79]
[80]
[81]
[82]
[83]
[84]
[85]
[86]
[87]
[88]
[89]
[90]
[91]
[92]
[93]
[94,"x","End of Products List for Concrete Pipe"]
[95,"x","End of Selections for Concrete Pipe",null,"End of Selections for Concrete Pipe"]
[]
[null,null,"HDPE Pipe"]
[null,"x",{"$f":"C106","v":"CoRR SPL No."},"Description","Brand/Model"]
[null,"x","CoRR SPL No.","Description","Brand/Model"]
[0,null,{"$f":"C108","v":"CoRR SPL No."},{"$f":"D108","v":"Description"},{"$f":"E108","v":"Brand/Model"}]
[1,null,"RRSPL-DR-4000","HDPE Pipe ","ADS N-12 HDPE Pipe"]
[2]
[3]
[4]
[5]
[6]
[7]
[8]
[9]
[10]
[11]
[12]
[13]
[14]
[15]
[16]
[17]
[18]
[19]
[20]
[21]
[22]
[23]
[24]
[25]
[26]
[27]
[28]
[29]
[30]
[31]
[32]
[33]
[34]
[35]
[36]
[37]
[38]
[39]
[40]
[41]
[42]
[43]
[44]
[45]
[46]
[47]
[48]
[49]
[50]
[51]
[52]
[53]
[54]
[55]
[56]
[57]
[58]
[59]
[60]
[61]
[62]
[63]
[64]
[65]
[66]
[67]
[68]
[69]
[70]
[71]
[72]
[73]
[74]
[75]
[76]
[77]
[78]
[79]
[80]
[81]
[82]
[83]
[84]
[85]
[86]
[87]
[88]
[89]
[90]
[91]
[92]
[93]
[94,"x","End of ProductsList for HDPE Pipe"]
[95,"x","End of Selections for HDPE Pipe ",null,"End of Selections for HDPE Pipe"]
[]
[null,null,"Concrete Structures"]
[null,"x",{"$f":"C206","v":"CoRR SPL No."},"Description","Brand/Model"]
[null,"x","CoRR SPL No.","Description","Brand/Model"]
[0,null,{"$f":"C208","v":"CoRR SPL No."},{"$f":"D208","v":"Description"},{"$f":"E208","v":"Brand/Model"}]
[1,null,"RRSPL-DR-5000","Precast Conc. WW Manhole","Hanson 4' ID Manhole-Regular Base w/ Reducing Cone. Concentric Cone."]
[2,null,"RRSPL-DR-5010","Precast Conc. WW Manhole","Hanson 5'/4' ID Manhole-Extended Base w/ Reducing Cone. Concentric Cone."]
[3,null,"RRSPL-DR-5020","Precast Conc. WW Manhole","Hanson 6'/4' ID Manhole-Extended Base w/ Reducing Cone. Concentric Cone."]
[4,null,"RRSPL-DR-5090","3'x3' Junction Box","Capital Precast-Var' Junction Box"]
[5,null,"RRSPL-DR-5100","4’x4’ Junction Box","Austin Precast 4’x4’x54” Junction Box. 4,500 psi conc.; 36” max rcp"]
[6,null,"RRSPL-DR-5110","5’x5’ Junction Box","Austin Precast 5’x5’ Junction box;  4,500 psi conc.; reinforced for h2o loading; 42” max rcp"]
[7,null,"RRSPL-DR-5120","8’x10’ Juction Box","Affordable Conc. Products - 8’x10’xVaries Junction Box; 4,500 psi conc.; 8” walls and floor"]
[8]
[9]
[10]
[11]
[12]
[13]
[14]
[15]
[16]
[17]
[18]
[19]
[20]
[21]
[22]
[23]
[24]
[25]
[26]
[27]
[28]
[29]
[30]
[31]
[32]
[33]
[34]
[35]
[36]
[37]
[38]
[39]
[40]
[41]
[42]
[43]
[44]
[45]
[46]
[47]
[48]
[49]
[50]
[51]
[52]
[53]
[54]
[55]
[56]
[57]
[58]
[59]
[60]
[61]
[62]
[63]
[64]
[65]
[66]
[67]
[68]
[69]
[70]
[71]
[72]
[73]
[74]
[75]
[76]
[77]
[78]
[79]
[80]
[81]
[82]
[83]
[84]
[85]
[86]
[87]
[88]
[89]
[90]
[91]
[92]
[93]
[94,"x","End of Products List for Concrete Structures"]
[95,"x","End of Selections for Concrete Structures",null,"End of Selections for Concrete Structures"]
[]
[null,null,"Inlets"]
[null,"x",{"$f":"C306","v":"CoRR SPL No."},"Description","Brand/Model"]
[null,"x","CoRR SPL No.","Description","Brand/Model"]
[0,null,{"$f":"C308","v":"CoRR SPL No."},{"$f":"D308","v":"Description"},{"$f":"E308","v":"Brand/Model"}]
[1,null,"RRSPL-DR-6000","3x3 Area Inlet","Austin Precast 3x3 Area Inlet. 4,500 psi concrete. 60’x60’x1’ w/ 6” openings. Top man way"]
[2,null,"RRSPL-DR-6010","4x4 Area Inlet","Austin Precast 4x4 Area Inlet. 4,500 psi concrete. 60’x60’x1’ w/ 6” openings. Top man way"]
[3,null,"RRSPL-DR-6100","10’ curb inlet","Austin Precast - Variable depth CoA 10’ curb inlet; 4,500 psi conc.; "]
[4,null,null,null,"Austin Precast - 10’ Curb Inlet with 4’ Invert"]
[5,null,"RRSPL-DR-6500","2’x2’x36” Surface Grate Inlet (Catch Basin)","Austin Precast -2’x2’x36” Surface Grate Inlet (Catch Basin)"]
[6,null,"RRSPL-DR-6600","3’x3’x48” Surface Grate Inlet (Catch Basin)","Austin Precast - 3’x3’x48” Surface Grate Inlet (Catch Basin)"]
[7,null,"RRSPL-DR-6700","4’x4’x48\" Surface Grate Inlet (Catch Basin)","Austin Precast - 4’x4’x48\" Surface Grate Inlet (Catch Basin)"]
[8]
[9]
[10]
[11]
[12]
[13]
[14]
[15]
[16]
[17]
[18]
[19]
[20]
[21]
[22]
[23]
[24]
[25]
[26]
[27]
[28]
[29]
[30]
[31]
[32]
[33]
[34]
[35]
[36]
[37]
[38]
[39]
[40]
[41]
[42]
[43]
[44]
[45]
[46]
[47]
[48]
[49]
[50]
[51]
[52]
[53]
[54]
[55]
[56]
[57]
[58]
[59]
[60]
[61]
[62]
[63]
[64]
[65]
[66]
[67]
[68]
[69]
[70]
[71]
[72]
[73]
[74]
[75]
[76]
[77]
[78]
[79]
[80]
[81]
[82]
[83]
[84]
[85]
[86]
[87]
[88]
[89]
[90]
[91]
[92]
[93]
[94,"x","End of Products List for Inlets"]
[95,"x","End of Selections for Inlets",null,"End of Selections for Inlets"]
[]
[null,null,"Concrete Joint Sealant"]
[null,"x",{"$f":"C406","v":"CoRR SPL No."},"Description","Brand/Model"]
[null,"x","CoRR SPL No.","Description","Brand/Model"]
[0,null,{"$f":"C408","v":"CoRR SPL No."},{"$f":"D408","v":"Description"},{"$f":"E408","v":"Brand/Model"}]
[1,null,"RRSPL-DR-7000","Concrete Joint Sealant","Martin Asphalt CO., Evergrip 990 Strips"]
[2,null,"RRSPL-DR-7001","Concrete Joint Sealant","Gulf States Asphalt Co., Evergrip 990 Strips"]
[3]
[4]
[5]
[6]
[7]
[8]
[9]
[10]
[11]
[12]
[13]
[14]
[15]
[16]
[17]
[18]
[19]
[20]
[21]
[22]
[23]
[24]
[25]
[26]
[27]
[28]
[29]
[30]
[31]
[32]
[33]
[34]
[35]
[36]
[37]
[38]
[39]
[40]
[41]
[42]
[43]
[44]
[45]
[46]
[47]
[48]
[49]
[50]
[51]
[52]
[53]
[54]
[55]
[56]
[57]
[58]
[59]
[60]
[61]
[62]
[63]
[64]
[65]
[66]
[67]
[68]
[69]
[70]
[71]
[72]
[73]
[74]
[75]
[76]
[77]
[78]
[79]
[80]
[81]
[82]
[83]
[84]
[85]
[86]
[87]
[88]
[89]
[90]
[91]
[92]
[93]
[94,"x","End of Products for Concrete Joint Sealant"]
[95,"x","End of Selections for Concrete Joint Sealant",null,"End of Selections for Concrete Joint Sealant"]
[]
[]
[null,null,"These products are proposed by:"]
[]
[]
[null,null,"Contractor's Signature                                                                                    Date"]
[]
[]
[null,null,"    Contractor's Printed Name"]
[]
[]
[null,null,"These products are reviewed and approved by:"]
[]
[]
[null,null,"Engineer's Signature                                                                                    Date"]
[]
[]
[null,null,"      Engineers Printed Name"]